bitfinex/quotes_BTCUSD_20221001
["timestamp","ask_amount","ask_price","bid_price","bid_amount"]
[1664608968509,0.69465884,19311.0,19309.0,0.12940314]
[1664608968717,0.56529184,19311.0,19310.0,0.079]
[1664608968985,0.17691084,19311.0,19310.0,0.079]
[1664608969193,0.26133883,19311.0,19310.0,0.079]
[1664608969862,0.26133883,19311.0,19309.0,0.12940314]
[1664608970208,0.64971983,19311.0,19309.0,0.12940314]
[1664608970720,0.64971983,19311.0,19309.0,0.20840314]
[1664608971187,0.77908983,19311.0,19309.0,0.20840314]
[1664608971758,0.73856011,19311.0,19309.0,0.20840314]
[1664608971759,0.77908983,19311.0,19309.0,0.20840314]
[1664608971996,0.06541321,19310.0,19309.0,0.12940314]
[1664608973042,0.06541321,19310.0,19309.0,0.20840314]
[1664608973726,0.73856011,19311.0,19309.0,0.20840314]
[1664608973934,0.73856011,19311.0,19309.0,0.12940314]
[1664608974150,0.73856011,19311.0,19309.0,0.25892314]
[1664608974793,0.73856011,19311.0,19309.0,0.33792314]
[1664608975865,0.73856011,19311.0,19309.0,0.25892314]
[1664608976657,0.73856011,19311.0,19309.0,0.33792314]
[1664608978104,0.26584312,19311.0,19310.0,0.52438108]
[1664608978335,0.26584312,19311.0,19310.0,2.80659218]
[1664608978336,0.00701112,19311.0,19310.0,2.80659218]
[1664608978592,0.00689814,19311.0,19310.0,4.84026579]
[1664608978825,0.00689814,19311.0,19310.0,5.05396252]
[1664608979049,9.814e-05,19311.0,19310.0,5.10573252]
[1664608979515,0.00687462,19311.0,19310.0,5.00573252]
[1664608979744,0.00687462,19311.0,19310.0,4.98220838]
[1664608979970,0.00687462,19311.0,19310.0,4.30320838]
[1664608980236,0.00687462,19311.0,19310.0,4.93413252]
[1664608980752,0.00687462,19311.0,19310.0,4.33413252]
[1664608980973,0.00687462,19311.0,19310.0,5.01313252]
[1664608982106,0.00687462,19311.0,19310.0,4.33413252]
[1664608982728,0.00687462,19311.0,19310.0,6.77106602]
[1664608982935,0.00687462,19311.0,19310.0,7.37106602]
[1664608983147,0.00687462,19311.0,19310.0,7.53355393]
[1664608984109,0.00687462,19311.0,19310.0,7.45455393]
[1664608984778,0.00687462,19311.0,19310.0,7.53355393]
[1664608985892,0.00687462,19311.0,19310.0,7.81796222]
[1664608986118,0.00687462,19311.0,19310.0,7.45455393]
[1664608986337,0.00687462,19311.0,19310.0,7.41395602]
[1664608986780,0.00687462,19311.0,19310.0,7.49295602]
[1664608987220,0.00687462,19311.0,19310.0,7.51833602]
[1664608987901,0.00687462,19311.0,19310.0,4.12672891]
[1664608988140,0.00687462,19311.0,19310.0,3.14919319]
[1664608988533,0.00687462,19311.0,19310.0,3.47082871]
[1664608988673,0.00687462,19311.0,19310.0,3.09002319]
[1664608988902,0.00687462,19311.0,19310.0,2.81027319]
[1664608989359,0.00687462,19311.0,19310.0,3.16902319]
[1664608989852,0.00687462,19311.0,19310.0,2.81027319]
[1664608990084,0.00687462,19311.0,19310.0,3.09002319]
[1664608990831,0.00687462,19311.0,19310.0,0.29854175]
[1664608991061,0.00687462,19311.0,19310.0,0.43775]
[1664608991288,0.00687462,19311.0,19310.0,0.079]
[1664608991972,0.00687462,19311.0,19307.0,0.129529]
[1664608992232,0.00687462,19311.0,19308.0,2.0]
[1664608992446,0.00687462,19311.0,19309.0,0.05]
[1664608992674,0.00687462,19311.0,19308.0,1.0]
[1664608992897,0.00687462,19311.0,19308.0,0.194524]
[1664608993117,0.02049868,19311.0,19309.0,2.0]
[1664608993568,0.00687462,19311.0,19310.0,0.05]
[1664608993824,0.00687462,19311.0,19308.0,0.194524]
[1664608994042,0.00687462,19311.0,19309.0,2.0]
[1664608994043,0.13624962,19311.0,19309.0,2.0]
[1664608994267,0.13624962,19311.0,19309.0,2.12952]
[1664608994497,0.13624962,19311.0,19310.0,0.05]
[1664608994726,0.13624962,19311.0,19309.0,0.12952]
[1664608994962,0.16281118,19311.0,19310.0,2.0]
[1664608995187,0.16281118,19311.0,19309.0,0.19552]
[1664608995409,0.16281118,19311.0,19310.0,2.0]
[1664608995637,0.16281118,19311.0,19309.0,0.19552]
[1664608995866,0.16281118,19311.0,19310.0,2.0]
[1664608996156,0.16281118,19311.0,19309.0,0.12952]
[1664608996385,0.16281118,19311.0,19310.0,2.0]
[1664608996613,0.16281118,19311.0,19309.0,0.12952]
[1664608996821,0.16281118,19311.0,19310.0,2.0]
[1664608997072,0.16281118,19311.0,19309.0,0.18752]
[1664608997290,0.16281118,19311.0,19310.0,1.0]
[1664608997483,0.16281118,19311.0,19309.0,0.18752]
[1664608997738,0.16281118,19311.0,19310.0,2.0]
[1664608997936,0.16281118,19311.0,19309.0,0.18752]
[1664608998061,0.16281118,19311.0,19310.0,2.0]
[1664608998468,0.13624962,19311.0,19309.0,0.12952]
[1664608998715,0.13624962,19311.0,19310.0,2.0]
[1664608998929,0.13624962,19311.0,19310.0,0.058]
[1664609000053,0.13624962,19311.0,19309.0,0.12952]
[1664609000283,0.13624962,19311.0,19310.0,2.0]
[1664609000398,0.13624962,19311.0,19309.0,0.12952]
[1664609000628,0.13624962,19311.0,19310.0,2.0]
[1664609000842,0.13624962,19311.0,19310.0,0.052]
[1664609001056,0.20164738,19311.0,19310.0,0.052]
[1664609001959,0.05,19310.0,19306.0,0.25205454]
[1664609002210,0.81549666,19309.0,19304.0,0.1]
[1664609002457,0.81549666,19309.0,19303.0,0.30155778]
[1664609002458,0.05,19305.0,19303.0,0.30155778]
[1664609002895,0.05,19305.0,19304.0,0.005]
[1664609003770,0.06013794,19305.0,19304.0,0.005]
[1664609004880,0.13913794,19305.0,19304.0,0.005]
[1664609005123,0.1974231,19305.0,19304.0,0.005]
[1664609006039,0.1974231,19305.0,19304.0,0.72157077]
[1664609006040,0.01013794,19305.0,19304.0,0.72157077]
[1664609006257,0.01013794,19305.0,19304.0,2.87548144]
[1664609006679,0.01013794,19305.0,19304.0,2.51673144]
[1664609006855,0.09013794,19305.0,19304.0,2.51673144]
[1664609007076,0.09013794,19305.0,19304.0,2.87720127]
[1664609007570,0.09013794,19305.0,19304.0,3.62277623]
[1664609007780,0.09013794,19305.0,19304.0,3.68727623]
[1664609008171,0.01013794,19305.0,19304.0,3.68727623]
[1664609008816,0.01013794,19305.0,19304.0,3.76127623]
[1664609009289,0.01013794,19305.0,19304.0,3.40252623]
[1664609009482,0.01013794,19305.0,19304.0,3.76127623]
[1664609010090,0.01013794,19305.0,19304.0,3.68727623]
[1664609010902,0.01013794,19305.0,19304.0,3.76427623]
[1664609011791,0.01013794,19305.0,19304.0,3.40552623]
[1664609012029,0.01013794,19305.0,19304.0,3.68727623]
[1664609012418,0.01013794,19305.0,19304.0,3.32852623]
[1664609012677,0.01013794,19305.0,19304.0,3.68727623]
[1664609012870,0.01013794,19305.0,19304.0,3.76427623]
[1664609014249,0.01013794,19305.0,19304.0,3.68727623]
[1664609014462,0.01013794,19305.0,19304.0,3.32852623]
[1664609014905,0.01013794,19305.0,19304.0,3.76427623]
[1664609015400,0.01013794,19305.0,19304.0,3.40552623]
[1664609015614,0.01013794,19305.0,19304.0,3.76427623]
[1664609016269,0.01013794,19305.0,19304.0,3.68727623]
[1664609016734,0.01013794,19305.0,19304.0,3.32852623]
[1664609016958,0.01013794,19305.0,19304.0,3.76427623]
[1664609018073,0.01013794,19305.0,19304.0,3.68727623]
[1664609018975,0.01013794,19305.0,19304.0,3.76427623]
[1664609019425,0.01013794,19305.0,19304.0,3.4038064]
[1664609019641,0.01013794,19305.0,19304.0,3.0450564]
[1664609019860,0.01013794,19305.0,19304.0,3.4038064]
[1664609020366,0.01013794,19305.0,19304.0,3.3268064]
[1664609020598,0.01013794,19305.0,19304.0,2.9680564]
[1664609020825,0.01013794,19305.0,19304.0,3.3268064]
[1664609021038,0.01013794,19305.0,19304.0,3.4038064]
[1664609021626,0.01013794,19305.0,19304.0,3.0450564]
[1664609021792,0.01013794,19305.0,19304.0,3.4038064]
[1664609022016,0.01013794,19305.0,19304.0,3.3268064]
[1664609022267,0.01013794,19305.0,19304.0,2.9680564]
[1664609022478,0.01013794,19305.0,19304.0,3.3268064]
[1664609022925,0.01013794,19305.0,19304.0,3.4038064]
[1664609023556,0.01013794,19305.0,19304.0,3.0450564]
[1664609023804,0.01013794,19305.0,19304.0,3.4038064]
[1664609024029,0.01013794,19305.0,19304.0,3.0450564]
[1664609024248,0.01013794,19305.0,19304.0,2.9680564]
[1664609024681,0.01013794,19305.0,19304.0,3.3268064]
[1664609024900,0.01013794,19305.0,19304.0,3.4038064]
[1664609026236,0.01006886,19305.0,19304.0,3.3268064]
[1664609027006,0.01006886,19305.0,19304.0,3.4038064]
[1664609028182,0.01006886,19305.0,19304.0,3.3268064]
[1664609028851,0.01006886,19305.0,19304.0,3.4038064]
[1664609029127,0.01006886,19305.0,19304.0,3.0450564]
[1664609029463,0.01006886,19305.0,19304.0,3.4038064]
[1664609030134,0.01006886,19305.0,19304.0,2.9680564]
[1664609030357,0.01006886,19305.0,19304.0,3.3268064]
[1664609030598,0.01006886,19305.0,19304.0,2.9680564]
[1664609030813,0.01006886,19305.0,19304.0,3.3268064]
[1664609031046,0.01006886,19305.0,19304.0,3.4038064]
[1664609031485,0.01006886,19305.0,19304.0,3.0450564]
[1664609031702,0.01006886,19305.0,19304.0,2.66563144]
[1664609032143,0.01006886,19305.0,19304.0,2.94738144]
[1664609032362,0.01006886,19305.0,19304.0,3.3268064]
[1664609032590,0.01006886,19305.0,19304.0,2.58863144]
[1664609033068,0.01006886,19305.0,19304.0,3.02438144]
[1664609033270,0.01006886,19305.0,19304.0,3.4038064]
[1664609033484,0.01006886,19305.0,19304.0,2.95988144]
[1664609033708,0.01006886,19305.0,19304.0,2.9805564]
[1664609033917,0.01006886,19305.0,19304.0,2.60113144]
[1664609034131,0.01006886,19305.0,19304.0,3.3393064]
[1664609034643,0.01006886,19305.0,19304.0,3.2623064]
[1664609034866,0.01006886,19305.0,19304.0,2.52413144]
[1664609035081,0.01006886,19305.0,19304.0,2.9805564]
[1664609035449,0.01006886,19305.0,19304.0,3.3393064]
[1664609035693,0.01006886,19305.0,19304.0,2.95988144]
[1664609035886,0.01006886,19305.0,19304.0,2.60113144]
[1664609036100,0.01006886,19305.0,19304.0,2.88288144]
[1664609036559,0.01006886,19305.0,19304.0,2.52413144]
[1664609036956,0.01006886,19305.0,19304.0,2.061]
[1664609038167,0.01006886,19305.0,19304.0,2.36375]
[1664609038294,0.01006886,19305.0,19304.0,2.005]
[1664609038953,0.01006886,19305.0,19304.0,2.061]
[1664609040199,0.01006886,19305.0,19304.0,2.005]
[1664609040442,0.01006886,19305.0,19304.0,2.36375]
[1664609041104,0.01006886,19305.0,19304.0,2.061]
[1664609041984,0.01006886,19305.0,19304.0,2.41975]
[1664609042295,0.01006886,19305.0,19304.0,3.24692809]
[1664609042524,0.01006886,19305.0,19304.0,3.60567809]
[1664609042956,0.01006886,19305.0,19304.0,3.68267809]
[1664609043388,0.01006886,19305.0,19304.0,3.32392809]
[1664609043626,0.01006886,19305.0,19304.0,3.31892809]
[1664609044001,0.01006886,19305.0,19304.0,2.9681564]
[1664609044221,0.01006886,19305.0,19304.0,2.8911564]
[1664609044428,0.01006886,19305.0,19304.0,3.2499064]
[1664609044979,0.01006886,19305.0,19304.0,2.9681564]
[1664609045884,0.01006886,19305.0,19304.0,3.3269064]
[1664609046294,0.01006886,19305.0,19304.0,3.2499064]
[1664609046662,0.01006886,19305.0,19304.0,2.8911564]
[1664609046881,0.01006886,19305.0,19304.0,3.3059064]
[1664609047137,0.01006886,19305.0,19304.0,2.9471564]
[1664609047298,0.01006886,19305.0,19304.0,3.3059064]
[1664609047513,0.01006886,19305.0,19304.0,2.9471564]
[1664609048000,0.01006886,19305.0,19304.0,3.3059064]
[1664609048218,0.01006886,19305.0,19304.0,2.8911564]
[1664609048389,0.01006886,19305.0,19304.0,3.2499064]
[1664609049066,0.01006886,19305.0,19304.0,3.3269064]
[1664609049276,0.01006886,19305.0,19304.0,2.9681564]
[1664609049540,0.01006886,19305.0,19304.0,3.3269064]
[1664609049767,0.01006886,19305.0,19304.0,2.58873144]
[1664609050238,0.01006886,19305.0,19304.0,2.51173144]
[1664609050642,0.01006886,19305.0,19304.0,2.87048144]
[1664609050853,0.01006886,19305.0,19304.0,2.51173144]
[1664609051095,0.01006886,19305.0,19304.0,2.56773144]
[1664609051966,0.01006886,19305.0,19304.0,2.9471564]
[1664609052674,0.01006886,19305.0,19304.0,2.8911564]
[1664609053126,0.01006886,19305.0,19304.0,2.9471564]
[1664609054327,0.01006886,19305.0,19304.0,2.8911564]
[1664609055061,0.01006886,19305.0,19304.0,3.3059064]
[1664609055287,0.01006886,19305.0,19304.0,2.9471564]
[1664609055505,0.01006886,19305.0,19304.0,3.3059064]
[1664609055717,0.01006886,19305.0,19304.0,2.9471564]
[1664609055916,0.01006886,19305.0,19304.0,3.3059064]
[1664609056159,0.01006886,19305.0,19304.0,2.56773144]
[1664609056383,0.01006886,19305.0,19304.0,0.51173144]
[1664609057055,0.06806886,19305.0,19304.0,0.51873144]
[1664609057595,0.20437575,19305.0,19304.0,0.007]
[1664609058289,0.05,19303.0,19302.0,0.260128]
[1664609058521,0.05,19303.0,19302.0,2.260128]
[1664609058741,1.00512029,19304.0,19302.0,2.130564]
[1664609058962,1.00512029,19304.0,19302.0,2.145564]
[1664609058963,0.05,19303.0,19302.0,2.145564]
[1664609059187,0.111,19303.0,19302.0,2.145564]
[1664609059625,0.061,19303.0,19302.0,2.145564]
[1664609060313,0.05,19303.0,19302.0,0.001]
[1664609060535,0.54616707,19303.0,19302.0,0.001]
[1664609060970,0.61516707,19303.0,19302.0,0.001]
[1664609061445,0.17662707,19303.0,19302.0,0.001]
[1664609061898,0.17662707,19303.0,19302.0,0.901]
[1664609062117,0.069,19303.0,19302.0,0.001]
[1664609062829,0.01014696,19303.0,19302.0,0.001]
[1664609063067,0.07914696,19303.0,19302.0,0.001]
[1664609064398,0.01014696,19303.0,19302.0,0.001]
[1664609064825,0.07820859,19303.0,19302.0,0.00089851]
[1664609065069,0.06614696,19303.0,19302.0,0.00089851]
[1664609066463,0.01014696,19303.0,19302.0,0.00089851]
[1664609067139,0.06614696,19303.0,19302.0,0.00089851]
[1664609068228,0.01014696,19303.0,19302.0,0.00089851]
[1664609068448,0.04999556,19303.0,19302.0,0.00089851]
[1664609069137,0.10599556,19303.0,19302.0,0.00089851]
[1664609070529,0.04999556,19303.0,19302.0,0.00089851]
[1664609071197,0.10599556,19303.0,19302.0,0.00089851]
[1664609072283,0.04999556,19303.0,19302.0,0.00089851]
[1664609073174,0.11899556,19303.0,19302.0,0.00089851]
[1664609074072,0.34030233,19303.0,19302.0,0.00089851]
[1664609074286,0.46981533,19303.0,19302.0,0.00089851]
[1664609074497,0.40081533,19303.0,19302.0,0.00089851]
[1664609075194,0.71584233,19303.0,19302.0,0.00089851]
[1664609075654,1.83389633,19303.0,19302.0,0.00089851]
[1664609076312,1.77789633,19303.0,19302.0,0.00089851]
[1664609076468,1.17789633,19303.0,19302.0,0.00089851]
[1664609077093,1.24989633,19303.0,19302.0,0.00089851]
[1664609077583,1.84989633,19303.0,19302.0,0.00089851]
[1664609078233,3.85805538,19303.0,19302.0,0.00089851]
[1664609078480,3.40238177,19303.0,19302.0,0.00089851]
[1664609079113,3.48138177,19303.0,19302.0,0.00089851]
[1664609079711,3.53138177,19303.0,19302.0,0.00089851]
[1664609080569,2.20768177,19303.0,19302.0,0.00089851]
[1664609081204,2.26768177,19303.0,19302.0,0.00089851]
[1664609082433,2.80768177,19303.0,19302.0,0.00089851]
[1664609082989,2.20768177,19303.0,19302.0,0.00089851]
[1664609083205,2.26768177,19303.0,19302.0,0.00089851]
[1664609083422,1.74962777,19303.0,19302.0,0.00089851]
[1664609084280,1.68962777,19303.0,19302.0,0.00089851]
[1664609085177,1.74962777,19303.0,19302.0,0.00089851]
[1664609085597,1.74962777,19303.0,19302.0,0.00079366]
[1664609086426,1.68962777,19303.0,19302.0,0.00079366]
[1664609087091,1.74962777,19303.0,19302.0,0.00079366]
[1664609088398,1.68962777,19303.0,19302.0,0.00079366]
[1664609089047,1.74962777,19303.0,19302.0,0.00079366]
[1664609089972,0.71984233,19303.0,19302.0,0.00079366]
[1664609090359,0.65984233,19303.0,19302.0,0.00079366]
[1664609091263,0.71984233,19303.0,19302.0,0.00079366]
[1664609091965,1.31984233,19303.0,19302.0,0.00079366]
[1664609092622,0.71984233,19303.0,19302.0,0.00079366]
[1664609092837,1.31984233,19303.0,19302.0,0.00079366]
[1664609093045,1.37984233,19303.0,19302.0,0.00079366]
[1664609094691,0.77984233,19303.0,19302.0,0.00079366]
[1664609094930,0.65984233,19303.0,19302.0,0.00079366]
[1664609095142,1.31984233,19303.0,19302.0,0.00079366]
[1664609095362,0.71984233,19303.0,19302.0,0.00079366]
[1664609096546,0.65984233,19303.0,19302.0,0.00079366]
[1664609097248,0.71984233,19303.0,19302.0,0.00079366]
[1664609097696,0.29145373,19303.0,19302.0,0.00079366]
[1664609097921,0.07014696,19303.0,19302.0,0.00079366]
[1664609098376,0.01014696,19303.0,19302.0,0.00079366]
[1664609099273,0.21665996,19303.0,19302.0,0.00079366]
[1664609100414,0.13965996,19303.0,19302.0,0.00079366]
[1664609101405,0.21665996,19303.0,19302.0,0.00079366]
[1664609101626,0.08714696,19303.0,19302.0,0.00079366]
[1664609102514,0.01014696,19303.0,19302.0,0.00079366]
[1664609103184,0.08714696,19303.0,19302.0,0.00079366]
[1664609104493,0.01014696,19303.0,19302.0,0.00079366]
[1664609105117,0.08714696,19303.0,19302.0,0.00079366]
[1664609106458,0.01014696,19303.0,19302.0,0.00079366]
[1664609107114,0.08714696,19303.0,19302.0,0.00079366]
[1664609108033,0.29011136,19303.0,19302.0,0.00079366]
[1664609108458,0.21311136,19303.0,19302.0,0.00079366]
[1664609109126,0.29011136,19303.0,19302.0,0.00071655]
[1664609109587,0.54913836,19303.0,19302.0,0.00071655]
[1664609109791,1.14913836,19303.0,19302.0,0.00071655]
[1664609110481,1.07205311,19303.0,19302.0,0.00071655]
[1664609111137,1.14905311,19303.0,19302.0,0.00071655]
[1664609111427,1.66710711,19303.0,19302.0,0.00071655]
[1664609112551,2.14236827,19303.0,19302.0,0.00071655]
[1664609112754,2.29369257,19303.0,19302.0,0.00071655]
[1664609112995,2.16263313,19303.0,19302.0,0.00071655]
[1664609113225,2.29569257,19303.0,19302.0,0.00071655]
[1664609113452,2.34569257,19303.0,19302.0,0.00071655]
[1664609113900,2.33489799,19303.0,19302.0,0.00071655]
[1664609114104,2.34567022,19303.0,19302.0,0.00071655]
[1664609114356,2.28489799,19303.0,19302.0,0.00071655]
[1664609114579,2.29367248,19303.0,19302.0,0.00071655]
[1664609115281,2.35367248,19303.0,19302.0,0.00071655]
[1664609115500,2.30367248,19303.0,19302.0,0.00071655]
[1664609116673,2.24367248,19303.0,19302.0,0.00071655]
[1664609117124,2.29367248,19303.0,19302.0,0.00071655]
[1664609117334,2.35367248,19303.0,19302.0,0.00071655]
[1664609118690,2.30367248,19303.0,19302.0,0.00071655]
[1664609118914,2.24367248,19303.0,19302.0,0.00071655]
[1664609119416,2.36467248,19303.0,19302.0,0.00071655]
[1664609120335,2.40522229,19303.0,19302.0,0.00071655]
[1664609120559,2.29370691,19303.0,19302.0,0.00071655]
[1664609120772,2.34370691,19303.0,19302.0,0.00071655]
[1664609121027,2.29370691,19303.0,19302.0,0.00071655]
[1664609121247,2.31470691,19303.0,19302.0,0.00071655]
[1664609121465,2.36470691,19303.0,19302.0,0.00071655]
[1664609121720,2.31470691,19303.0,19302.0,0.00071655]
[1664609121942,2.36470691,19303.0,19302.0,0.00071655]
[1664609122593,2.29370691,19303.0,19302.0,0.00071655]
[1664609123164,2.24370691,19303.0,19302.0,0.00071655]
[1664609123393,2.36470691,19303.0,19302.0,0.00071655]
[1664609123883,2.27419158,19303.0,19302.0,0.00071655]
[1664609124567,2.20319158,19303.0,19302.0,0.00071655]
[1664609124797,2.24370691,19303.0,19302.0,0.00071655]
[1664609125233,2.16264747,19303.0,19302.0,0.00071655]
[1664609125455,2.31470691,19303.0,19302.0,0.00071655]
[1664609125680,2.30389799,19303.0,19302.0,0.00071655]
[1664609126133,2.41471327,19303.0,19302.0,0.00071655]
[1664609126572,2.29371327,19303.0,19302.0,0.00071655]
[1664609127037,2.34371327,19303.0,19302.0,0.00071655]
[1664609127286,2.64843206,19303.0,19302.0,0.00071655]
[1664609127775,2.43483817,19303.0,19302.0,0.00071655]
[1664609128243,2.64842938,19303.0,19302.0,0.00071655]
[1664609128688,2.43483817,19303.0,19302.0,0.00071655]
[1664609128911,2.36383817,19303.0,19302.0,0.00071655]
[1664609129140,2.5194756,19303.0,19302.0,0.00071655]
[1664609129363,2.57237007,19303.0,19302.0,0.00071655]
[1664609130770,2.48630836,19303.0,19302.0,0.00071655]
[1664609131420,2.57246185,19303.0,19302.0,0.00071655]
[1664609131863,2.65354198,19303.0,19302.0,0.00071655]
[1664609132352,2.65352308,19303.0,19302.0,0.00071655]
[1664609132588,3.12223964,19303.0,19302.0,0.00071655]
[1664609132767,2.93983755,19303.0,19302.0,0.00071655]
[1664609133121,3.04117933,19303.0,19302.0,0.00071655]
[1664609133266,3.11717933,19303.0,19302.0,0.00071655]
[1664609133467,3.01583755,19303.0,19302.0,0.00071655]
[1664609133693,0.75522422,19301.0,19300.0,0.0151]
[1664609133964,2.25237566,19301.0,19300.0,0.0151]
[1664609134219,3.3112879,19301.0,19300.0,0.0151]
[1664609134444,3.69496151,19301.0,19300.0,0.0151]
[1664609134838,4.15988785,19301.0,19300.0,0.0151]
[1664609135200,3.96319201,19301.0,19300.0,0.0151]
[1664609135466,4.00719201,19301.0,19300.0,0.0151]
[1664609135902,4.15941825,19301.0,19300.0,0.0151]
[1664609136138,4.47001825,19301.0,19300.0,0.0151]
[1664609136270,4.31779201,19301.0,19300.0,0.0151]
[1664609136484,4.27379201,19301.0,19300.0,0.0151]
[1664609137371,4.33479201,19301.0,19300.0,0.0151]
[1664609137592,4.43607036,19301.0,19300.0,0.0151]
[1664609137802,4.33479201,19301.0,19300.0,0.0151]
[1664609138582,4.27379201,19301.0,19300.0,0.0151]
[1664609138798,0.9053,19300.0,19299.0,0.0021]
[1664609139007,2.69246757,19300.0,19299.0,0.0021]
[1664609139243,2.79246757,19300.0,19299.0,0.0021]
[1664609139462,2.85046757,19300.0,19299.0,0.0021]
[1664609139689,2.63693246,19300.0,19299.0,0.0021]
[1664609140353,2.86423188,19300.0,19299.0,0.0021]
[1664609140579,2.80632296,19300.0,19299.0,0.0021]
[1664609140788,2.72521743,19300.0,19299.0,0.0021]
[1664609141453,2.72521743,19300.0,19297.0,0.0021]
[1664609141454,0.05,19298.0,19297.0,0.0021]
[1664609141674,1.66559585,19298.0,19297.0,0.0021]
[1664609141888,2.30609802,19298.0,19297.0,0.0071]
[1664609142366,5.0990726,19298.0,19297.0,0.0071]
[1664609142674,5.03831935,19298.0,19297.0,0.0071]
[1664609142890,5.39635769,19298.0,19297.0,0.0071]
[1664609143329,5.52524366,19298.0,19297.0,0.0071]
[1664609143816,5.90891727,19298.0,19297.0,0.0071]
[1664609144256,5.90122337,19298.0,19297.0,0.0071]
[1664609144592,5.84322337,19298.0,19297.0,0.0071]
[1664609145056,5.79322337,19298.0,19297.0,0.0071]
[1664609145268,5.8107411,19298.0,19297.0,0.0071]
[1664609145495,0.5947,19296.0,19295.0,0.0021]
[1664609145723,2.83013001,19296.0,19295.0,0.0021]
[1664609145970,2.92061228,19296.0,19295.0,0.0021]
[1664609146410,2.4964564,19296.0,19295.0,0.0021]
[1664609146624,2.98175401,19296.0,19295.0,0.0021]
[1664609147263,3.03175401,19296.0,19295.0,0.0021]
[1664609148026,2.71591685,19296.0,19295.0,0.0021]
[1664609148253,2.69281132,19296.0,19295.0,0.0021]
[1664609148470,3.13295968,19296.0,19295.0,0.0021]
[1664609148698,3.08295968,19296.0,19295.0,0.0021]
[1664609148955,3.03247746,19296.0,19295.0,0.0021]
[1664609149413,3.07099519,19296.0,19295.0,0.0021]
[1664609149558,3.12402754,19296.0,19295.0,0.0021]
[1664609150854,3.04502754,19296.0,19295.0,0.0021]
[1664609151542,3.10002754,19296.0,19295.0,0.0021]
[1664609152558,2.66560258,19296.0,19295.0,0.0021]
[1664609152814,3.04502754,19296.0,19295.0,0.0021]
[1664609153006,2.66560258,19296.0,19295.0,0.0021]
[1664609153502,2.72060258,19296.0,19295.0,0.0021]
[1664609154186,2.72060258,19296.0,19295.0,0.00092601]
[1664609154406,4.00695054,19296.0,19295.0,0.00092601]
[1664609154625,3.95195054,19296.0,19295.0,0.00092601]
[1664609154839,3.57252558,19296.0,19295.0,0.00092601]
[1664609155272,3.95195054,19296.0,19295.0,0.00092601]
[1664609155487,4.00695054,19296.0,19295.0,0.00092601]
[1664609155701,3.62752558,19296.0,19295.0,0.00092601]
[1664609156742,3.57252558,19296.0,19295.0,0.00092601]
[1664609156899,3.95195054,19296.0,19295.0,0.00092601]
[1664609157289,3.57252558,19296.0,19295.0,0.00092601]
[1664609157498,4.00695054,19296.0,19295.0,0.00092601]
[1664609158865,3.57252558,19296.0,19295.0,0.00092601]
[1664609159342,3.95195054,19296.0,19295.0,0.00092601]
[1664609159567,4.00695054,19296.0,19295.0,0.00092601]
[1664609160670,3.57252558,19296.0,19295.0,0.00092601]
[1664609161554,3.62752558,19296.0,19295.0,0.00092601]
[1664609161774,4.00695054,19296.0,19295.0,0.00092601]
[1664609162664,3.95195054,19296.0,19295.0,0.00092601]
[1664609163147,3.57252558,19296.0,19295.0,0.00092601]
[1664609163367,3.95195054,19296.0,19295.0,0.00092601]
[1664609163585,4.00695054,19296.0,19295.0,0.00092601]
[1664609163799,3.62752558,19296.0,19295.0,0.00092601]
[1664609164651,3.57252558,19296.0,19295.0,0.00092601]
[1664609165537,3.65152558,19296.0,19295.0,0.00092601]
[1664609166789,3.57252558,19296.0,19295.0,0.00092601]
[1664609167637,3.62752558,19296.0,19295.0,0.00092601]
[1664609168701,3.57252558,19296.0,19295.0,0.00092601]
[1664609168876,3.61300785,19296.0,19295.0,0.00092601]
[1664609169565,4.04743281,19296.0,19295.0,0.00092601]
[1664609169765,3.62752558,19296.0,19295.0,0.00092601]
[1664609170811,3.57252558,19296.0,19295.0,0.00092601]
[1664609171483,3.26692558,19296.0,19295.0,0.00092601]
[1664609172851,3.31313125,19296.0,19295.0,0.00092601]
[1664609173442,3.30740785,19296.0,19295.0,0.00092601]
[1664609173887,3.2043755,19296.0,19295.0,0.00092601]
[1664609174106,3.2543755,19296.0,19295.0,0.00092601]
[1664609174591,3.1993755,19296.0,19295.0,0.00092601]
[1664609175096,3.2600989,19296.0,19295.0,0.00092601]
[1664609175430,3.2543755,19296.0,19295.0,0.00092601]
[1664609175666,3.3150989,19296.0,19295.0,0.00092601]
[1664609175896,3.2543755,19296.0,19295.0,0.00092601]
[1664609176118,3.2043755,19296.0,19295.0,0.00092601]
[1664609176816,8.18581662,19296.0,19295.0,0.00092601]
[1664609176996,8.23581662,19296.0,19295.0,0.00092601]
[1664609177216,8.29654002,19296.0,19295.0,0.00092601]
[1664609177425,8.54898934,19296.0,19295.0,0.00092601]
[1664609178763,8.49398934,19296.0,19295.0,0.00081933]
[1664609178889,8.37759411,19296.0,19295.0,0.00081933]
[1664609179123,8.33711128,19296.0,19295.0,0.00081933]
[1664609179339,3.34115299,19296.0,19295.0,0.00081933]
[1664609179553,3.43141251,19296.0,19295.0,0.00081933]
[1664609179763,3.51244513,19296.0,19295.0,0.00081933]
[1664609180784,3.45744513,19296.0,19295.0,0.00081933]
[1664609181536,3.52044513,19296.0,19295.0,0.00081933]
[1664609182779,3.3764634,19296.0,19295.0,0.00081933]
[1664609183223,3.3264634,19296.0,19295.0,0.00081933]
[1664609183660,3.4524634,19296.0,19295.0,0.00081933]
[1664609183898,3.35120798,19296.0,19295.0,0.00081933]
[1664609184107,8.20527617,19296.0,19295.0,0.00081933]
[1664609184750,8.12927617,19296.0,19295.0,0.00081933]
[1664609185201,8.02794576,19296.0,19295.0,0.00081933]
[1664609185418,8.10394576,19296.0,19295.0,0.00081933]
[1664609186115,7.50924576,19296.0,19295.0,0.00081933]
[1664609186314,7.61057654,19296.0,19295.0,0.00081933]
[1664609186780,7.53457654,19296.0,19295.0,0.00081933]
[1664609187164,7.48457654,19296.0,19295.0,0.00081933]
[1664609187376,7.56564048,19296.0,19295.0,0.00081933]
[1664609187702,7.63264048,19296.0,19295.0,0.00081933]
[1664609187903,7.63264682,19296.0,19295.0,0.00081933]
[1664609188062,7.60157654,19296.0,19295.0,0.00081933]
[1664609188780,7.53457654,19296.0,19295.0,0.00081933]
[1664609188997,7.58457654,19296.0,19295.0,0.00081933]
[1664609189433,7.61564325,19296.0,19295.0,0.00081933]
[1664609189661,7.63264325,19296.0,19295.0,0.00081933]
[1664609189879,7.14734564,19296.0,19295.0,0.00081933]
[1664609190127,5.87225996,19296.0,19295.0,0.00081933]
[1664609190434,5.3417104,19296.0,19295.0,0.00081933]
[1664609190794,4.76297896,19296.0,19295.0,0.00081933]
[1664609191435,4.83197896,19296.0,19295.0,0.00081933]
[1664609192746,4.76297896,19296.0,19295.0,0.00081933]
[1664609193610,4.84297896,19296.0,19295.0,0.00081933]
[1664609194778,4.76297896,19296.0,19295.0,0.00081933]